Cogmind - Beta 13 @@@ ROGUE MODE // 2024.04.24 @ 13:52:57 Player: opdo Result: Self-destructed Performance ------------- Evolutions (5) 2500 Regions Visited (7) 1400 Robots Destroyed (19) 95 Value Destroyed (376) 376 Prototype IDs (2) 40 Alien Tech Used (0) 0 Bonus (214) 214 TOTAL SCORE: 4625 Bonus ------- Follower Combat Kills 70 Entered Garrisons 200 Friendly Fire -56 Cogmind --------- Core Integrity 931/1000 Matter 192/300 Energy 160/160 System Corruption 0% Temperature Cool (0) Movement Flying (95) Ox1 Location -5/Garrison Parts ------- > --- POWER (3) -------- Light Fission Core > --- PROPULSION (6) --- Improved Flight Unit Improved Flight Unit Cooled VTOL Module > --- UTILITY (6) ------ Small Storage Unit Signal Interpreter Improved Terrain Scanner Improved Terrain Scan Processor System Shield > --- WEAPON (2) ------- Chainsword Chainsword > --- INVENTORY (8) ---- Titanium Leg Titanium Leg Airjet Airjet Combat Airjet Advanced Signal Interpreter Hardened Medium Armor Plating Thermic Laser Peak State ------------ > --- POWER ------------ Light Angular Momentum Engine Light Fission Core > --- PROPULSION ------- Improved Flight Unit Improved Flight Unit Improved Flight Unit Cesium-ion Thruster Cooled VTOL Module Field Propulsion Drive > --- UTILITY ---------- Small Storage Unit Weight Redist. System Signal Interpreter Improved Terrain Scanner Improved Terrain Scan Processor System Shield > --- WEAPON ----------- Chainsword Chainsword > --- INVENTORY -------- Titanium Leg Titanium Leg Airjet Airjet Combat Airjet Advanced Signal Interpreter Hardened Medium Armor Plating Thermic Laser [Rating: 57] Favorites ----------- Power Light Ion Engine Engine Light Ion Engine Power Core Light Fission Core Propulsion Improved Flight Unit Leg Aluminum Leg Wheel Wheel Flight Unit Improved Flight Unit Utility Small Storage Unit Device Weight Redist. System Storage Small Storage Unit Processor Signal Interpreter Hackware System Shield Weapon Light Assault Rifle Ballistic Gun Light Assault Rifle Launcher Rocket Launcher Slashing Weapon Chainsword Build | -11 -10 -9 -8 -7 -6 -5 -5 ------- Run | Yrd Mat Mat Mat Fac Fac Fac Gar Slots Evolved 10 | . . 2 2 2 2 2 . Power 2 | . . . . 1 . 1 . Propulsion 4 | . . 1 2 . . 1 . Utility 4 | . . 1 . 1 2 . . Weapon . | . . . . . . . . Parts Attached 43 | 6 4 6 8 13 5 1 . Power 7 | 1 1 . 1 3 1 . . Engine 6 | 1 1 . 1 3 . . . Core 1 | . . . . . 1 . . Reactor . | . . . . . . . . Propulsion 18 | 2 1 5 4 5 . 1 . Treads . | . . . . . . . . Leg 8 | 2 1 1 2 2 . . . Wheel 1 | . . . . 1 . . . Hover . | . . . . . . . . Flight 9 | . . 4 2 2 . 1 . Utility 9 | 1 2 1 1 2 2 . . Device 3 | . 1 . . 2 . . . Storage 1 | 1 . . . . . . . Processor 4 | . 1 1 1 . 1 . . Hackware 1 | . . . . . 1 . . Protection . | . . . . . . . . Artifact . | . . . . . . . . Weapon 9 | 2 . . 2 3 2 . . Energy Gun . | . . . . . . . . Energy Cannon . | . . . . . . . . Ballistic Gun 6 | 2 . . 1 3 . . . Ballistic Cannon . | . . . . . . . . Launcher 1 | . . . 1 . . . . Special Weapon . | . . . . . . . . Impact Weapon . | . . . . . . . . Slashing Weapon 2 | . . . . . 2 . . Piercing Weapon . | . . . . . . . . Special Melee Weapon . | . . . . . . . . Unidentified Prototypes 2 | . . 1 . 1 . . . Parts Lost 8 | . . . 3 . . . 5 Power 2 | . . . 1 . . . 1 Propulsion 5 | . . . 2 . . . 3 Utility 1 | . . . . . . . 1 Weapon . | . . . . . . . . Highest Loss Streak 5 | . . . 3 . . . 5 To Critical Strikes . | . . . . . . . . Average Slot Usage (%) 94 | . 95 100 91 92 100 88 87 Engine 12 | . 14 11 9 14 9 5 2 Leg 15 | . 28 27 4 11 . . . Flight 18 | . . 5 32 24 33 29 31 Device 7 | . 9 . . 9 13 11 11 Storage 9 | . 14 11 9 7 6 5 5 Processor 12 | . . 22 18 12 13 11 11 Ballistic Gun 15 | . 28 22 16 10 10 . . Slashing Weapon 1 | . . . . . 2 11 11 Naked Turns . | . . . . . . . . Heaviest Build 30 | 11 12 11 13 26 30 28 28 Greatest Support 38 | 20 20 30 23 26 33 38 38 Greatest Overweight (x) 2 | 2 . 2 . 1 1 . 1 Average Overweight (x) . | . . . . . . . . Largest Inventory Capacity 8 | 8 8 8 8 8 8 8 8 Average Capacity 7 | 7 8 8 8 8 8 8 8 Most Carried 8 | 6 8 8 8 8 8 8 8 Average Carried 7 | 3 7 7 7 7 7 8 8 Final Capacity 8 | 8 8 8 8 8 8 8 8 Final Carried 8 | 6 8 8 8 8 8 8 8 Class Distribution -------------------- 83% | Mutant 16% | Sprinter Dominant Class ---------------- Mutant | -10/Materials Mutant | -9/Materials Mutant | -8/Materials Mutant | -7/Factory Sprinter | -6/Factory Sprinter | -5/Factory Sprinter | -5/Garrison Resources | -11 -10 -9 -8 -7 -6 -5 -5 ----------- Run | Yrd Mat Mat Mat Fac Fac Fac Gar Matter Collected 890 | 221 121 45 124 215 64 . 100 Remotely . | . . . . . . . . Salvage Created 616 | 24 121 129 160 118 64 . . Parts 42 | 5 6 8 11 6 6 . . Haulers Intercepted 3 | . . . 1 2 . . . Recyclers Shooed . | . . . . . . . . Parts Field Recycled . | . . . . . . . . Retrieved Matter . | . . . . . . . . Parts Self-Destructed . | . . . . . . . . Prevented . | . . . . . . . . Kills | -11 -10 -9 -8 -7 -6 -5 -5 ------- Run | Yrd Mat Mat Mat Fac Fac Fac Gar Combat Hostiles Destroyed 8 | . 3 3 2 . . . . Guns 6 | . 3 3 . . . . . AOE 2 | . . . 2 . . . . Classes Destroyed 6 | 1 1 1 2 1 . . . Worker 4 | . . . . 1 3 . . Tunneler 3 | 2 . . . . 1 . . Hauler 3 | . . . 1 2 . . . Operator 1 | . . . 1 . . . . Grunt 7 | . 3 2 2 . . . . Sentry 1 | . . 1 . . . . . Best Kill Streak 4 | 2 2 2 2 1 4 . . Combat Bots Only 2 | . 2 2 2 . . . . Max Kills in Single Turn 1 | 1 1 1 1 1 1 . . Gunslinging . | . . . . . . . . Exploded 1 | . . . 1 . . . . Melee . | . . . . . . . . Uniques/NPCs Destroyed . | . . . . . . . . Combat | -11 -10 -9 -8 -7 -6 -5 -5 -------- Run | Yrd Mat Mat Mat Fac Fac Fac Gar Hostile Shots Fired 97 | . 9 18 23 3 . . 44 Missed 33 | . 3 2 9 1 . . 18 Damage Taken 1177 | . 64 222 239 206 . . 446 Core 213 | . 10 79 42 13 . . 69 Absorbed by Shields 26 | . . . . . . . 26 Core Remaining (%) 94 | 100 96 80 92 98 100 . . Volleys Fired 108 | 7 11 15 18 54 3 . . Largest 2 | 2 2 2 2 2 2 . . Hottest 56 | 40 40 40 53 40 56 . . Shots Fired 190 | 14 22 30 36 82 6 . . Gun 186 | 14 22 30 32 82 6 . . Cannon . | . . . . . . . . Launcher 4 | . . . 4 . . . . Special . | . . . . . . . . Kinetic 186 | 14 22 30 32 82 6 . . Thermal . | . . . . . . . . Explosive 4 | . . . 4 . . . . Electromagnetic . | . . . . . . . . Robot Hit Streak 14 | 3 6 13 7 14 2 . . Robot Miss Streak 4 | 2 4 3 2 4 2 . . Penetration Max . | . . . . . . . . Secondary Targets . | . . . . . . . . Shots Hit Robots 128 | 8 13 20 24 56 7 . . Core Hits 44 | 2 6 8 16 9 3 . . Critical Kills . | . . . . . . . . Critical Parts Destroyed 1 | . . 1 . . . . . Critical Strikes 1 | . . 1 . . . . . Destroy 1 | . . 1 . . . . . Melee Attacks 5 | . . . . . 5 . . Impact . | . . . . . . . . Slashing 5 | . . . . . 5 . . Piercing . | . . . . . . . . Sneak Attacks 4 | . . . . . 4 . . Combat Hostiles . | . . . . . . . . Follow-up Attacks . | . . . . . . . . Damage Inflicted 2047 | 84 154 203 574 639 393 . . Guns 1319 | 84 154 203 185 639 54 . . Cannons . | . . . . . . . . Explosions 389 | . . . 389 . . . . Melee 339 | . . . . . 339 . . Ramming . | . . . . . . . . Kinetic 1319 | 84 154 203 185 639 54 . . Thermal . | . . . . . . . . Explosive 389 | . . . 389 . . . . Electromagnetic . | . . . . . . . . Impact . | . . . . . . . . Slashing 339 | . . . . . 339 . . Piercing . | . . . . . . . . Highest Corruption 4 | . . 4 . . . . . Average Corruption 4 | . . 4 . . . . . Corruption Purged . | . . . . . . . . Corruption Blocked . | . . . . . . . . Effects 2 | . . 2 . . . . . Matter Fused 2 | . . 2 . . . . . Overload Shots . | . . . . . . . . Overflow Damage 50 | . . . . . 50 . . Projectiles . | . . . . . . . . Explosions . | . . . . . . . . Melee 50 | . . . . . 50 . . Knockbacks . | . . . . . . . . Impact . | . . . . . . . . Kinetic . | . . . . . . . . Secondary . | . . . . . . . . Self-Inflicted Damage 6 | . . . 6 . . . . Shots 1 | . . . 1 . . . . Rammed . | . . . . . . . . Targets Rammed . | . . . . . . . . Kicked . | . . . . . . . . Crushed . | . . . . . . . . Highest Temperature 94 | . 6 6 39 13 29 15 94 Average Temperature 12 | . 6 4 13 3 8 10 38 Received Heat Transfer 393 | . 36 87 144 18 . . 108 Siege Activations . | . . . . . . . . Robots Corrupted . | . . . . . . . . Combat Hostiles . | . . . . . . . . Parts Fried . | . . . . . . . . Impact Corruptions . | . . . . . . . . Robots Melted . | . . . . . . . . Combat Hostiles . | . . . . . . . . Parts Melted . | . . . . . . . . Heat Transferred . | . . . . . . . . Parts Sabotaged . | . . . . . . . . Parts Stolen . | . . . . . . . . Parts Stripped . | . . . . . . . . Power Chain Reactions . | . . . . . . . . Alert | -11 -10 -9 -8 -7 -6 -5 -5 ------- Run | Yrd Mat Mat Mat Fac Fac Fac Gar Peak Influence 253 | 10 112 201 197 253 104 50 220 Initial 84 | . 6 46 84 84 54 50 35 Average 90 | 3 51 89 108 130 68 50 78 Maximum Alert Level 1 | . . 1 . 1 . . 1 Low Security (%) 91 | 100 100 93 100 78 100 100 95 Level 1 8 | . . 6 . 21 . . 4 Level 2 . | . . . . . . . . Level 3 . | . . . . . . . . Level 4 . | . . . . . . . . Level 5 . | . . . . . . . . High Security . | . . . . . . . . Max Security . | . . . . . . . . Squads Dispatched 5 | . 1 1 . 3 . . . Investigation 2 | . 1 . . 1 . . . Extermination . | . . . . . . . . Reinforcement 3 | . . 1 . 2 . . . Assault . | . . . . . . . . Garrison . | . . . . . . . . Intercept . | . . . . . . . . Searches Triggered . | . . . . . . . . Construction Impeded . | . . . . . . . . Haulers Reinforced 2 | . . . . 2 . . . Active Scanning Responses . | . . . . . . . . Cargo Convoy Interrupts . | . . . . . . . . Stealth | -11 -10 -9 -8 -7 -6 -5 -5 --------- Run | Yrd Mat Mat Mat Fac Fac Fac Gar Distress Signals 2 | . . 1 1 . . . . Communications Jammed . | . . . . . . . . Distress Signals . | . . . . . . . . Times Spotted 56 | . 4 9 9 8 1 . 25 Peak Tracking Total 15 | . 2 4 7 3 1 . 15 Tactical Retreats 6 | . . 2 1 . . . 3 Traps | -11 -10 -9 -8 -7 -6 -5 -5 ------- Run | Yrd Mat Mat Mat Fac Fac Fac Gar Traps Triggered 5 | . 1 . . 1 . . 3 Indirectly . | . . . . . . . . Trap Hack Attempts . | . . . . . . . . Triggered . | . . . . . . . . Disarmed . | . . . . . . . . Reprogrammed . | . . . . . . . . Reused . | . . . . . . . . Traps Extracted . | . . . . . . . . Installed . | . . . . . . . . Triggered . | . . . . . . . . Machines | -11 -10 -9 -8 -7 -6 -5 -5 ---------- Run | Yrd Mat Mat Mat Fac Fac Fac Gar Machines Disabled 2 | . . . . 2 . . . Max in Single Turn . | . . . . . . . . Machines Repaired . | . . . . . . . . Machines Dismantled . | . . . . . . . . Machines Sabotaged . | . . . . . . . . Overloaded Fab Kills . | . . . . . . . . Hacking | -11 -10 -9 -8 -7 -6 -5 -5 --------- Run | Yrd Mat Mat Mat Fac Fac Fac Gar Machines Accessed 16 | . 2 1 2 6 3 1 1 Terminals 8 | . 1 1 2 2 1 . 1 Fabricators 3 | . . . . 3 . . . Repair Stations . | . . . . . . . . Recycling Units 2 | . 1 . . . 1 . . Scanalyzers 1 | . . . . 1 . . . Garrison Access 2 | . . . . . 1 1 . Total Hacks 39 | . 3 2 7 14 9 2 2 Successful 20 | . 3 1 4 6 4 1 1 Failed 19 | . . 1 3 8 5 1 1 Catastrophic 4 | . . 1 . 2 . . 1 Database Lockouts . | . . . . . . . . Manual 23 | . 3 2 5 8 4 . 1 Terminals 24 | . 1 2 7 8 4 . 2 Fabricators 5 | . . . . 5 . . . Repair Stations . | . . . . . . . . Recycling Units 5 | . 2 . . . 3 . . Scanalyzers 1 | . . . . 1 . . . Garrison Access 4 | . . . . . 2 2 . Terminal Hacks 5 | . . . 2 2 . . 1 Emergency Access Points 1 | . . . . . . . 1 Alert Level 2 | . . . 1 1 . . . Zone Layout 2 | . . . 1 1 . . . Fabricator Hacks 1 | . . . . 1 . . . Network Status 1 | . . . . 1 . . . Repair Station Hacks . | . . . . . . . . Recycling Unit Hacks 3 | . . . . . 3 . . Process 1 | . . . . . 1 . . Retrieve Matter 2 | . . . . . 2 . . Scanalyzer . | . . . . . . . . Garrison Access Hacks 1 | . . . . . . 1 . Unlock Access 1 | . . . . . . 1 . Unauthorized Hacks 10 | . 3 1 2 3 1 . . Terminals 7 | . 1 1 2 2 1 . . Assimilate 2 | . . . 1 . 1 . . Botnet 4 | . . 1 1 2 . . . Sabotage 1 | . 1 . . . . . . Fabricators 1 | . . . . 1 . . . Report 1 | . . . . 1 . . . Repair Stations . | . . . . . . . . Recycling Units 2 | . 2 . . . . . . Monitor 1 | . 1 . . . . . . Reject 1 | . 1 . . . . . . Scanalyzers . | . . . . . . . . Garrison Access . | . . . . . . . . Data Cores Recovered . | . . . . . . . . Used . | . . . . . . . . Hacking Detections 13 | . . 1 2 6 2 1 1 Full Trace Events 1 | . . . . 1 . . . Feedback Events . | . . . . . . . . Feedback Blocked . | . . . . . . . . Robot Schematics Acquired . | . . . . . . . . Robots Built . | . . . . . . . . Authchips . | . . . . . . . . Time . | . . . . . . . . Total Robot Build Rating . | . . . . . . . . Part Schematics Acquired . | . . . . . . . . Parts Built . | . . . . . . . . Authchips . | . . . . . . . . Time . | . . . . . . . . Total Part Build Rating . | . . . . . . . . Parts Repaired . | . . . . . . . . Time . | . . . . . . . . Parts Recycled . | . . . . . . . . Recycled Matter 20 | . . . . . 20 . . Retrieved Matter 20 | . . . . . 20 . . Retrieved Components . | . . . . . . . . Parts Scanalyzed . | . . . . . . . . Part Schematics Acquired . | . . . . . . . . Parts Damaged . | . . . . . . . . Bothacking | -11 -10 -9 -8 -7 -6 -5 -5 ------------ Run | Yrd Mat Mat Mat Fac Fac Fac Gar Used RIF Installer . | . . . . . . . . Robots Hacked . | . . . . . . . . Non-combat . | . . . . . . . . Combat . | . . . . . . . . Robot Hacks Applied . | . . . . . . . . Relay Couplers Released . | . . . . . . . . Fabnet Peak Effective % . | . . . . . . . . Robots Rewired 1 | . . . . 1 . . . Allies Hacked . | . . . . . . . . Hacks Repelled . | . . . . . . . . Allies | -11 -10 -9 -8 -7 -6 -5 -5 -------- Run | Yrd Mat Mat Mat Fac Fac Fac Gar Total Allies 3 | . . . 1 1 1 . . Largest Group 1 | . . . 1 1 1 . . Highest-Rated Group 34 | . . . 10 34 9 . . Highest-Rated Ally 34 | . . . 10 34 9 . . Total Orders . | . . . . . . . . Ally Attacks 7 | . . . . 7 . . . Total Damage 316 | . . . . 316 . . . Kills 3 | . . . . 3 . . . Allies Corrupted . | . . . . . . . . Allies Melted . | . . . . . . . . Intel | -11 -10 -9 -8 -7 -6 -5 -5 ------- Run | Yrd Mat Mat Mat Fac Fac Fac Gar Robot Analysis Total . | . . . . . . . . Derelict Logs Recovered . | . . . . . . . . Drone Launches . | . . . . . . . . Drone Recoveries . | . . . . . . . . Exploration | -11 -10 -9 -8 -7 -6 -5 -5 ------------- Run | Yrd Mat Mat Mat Fac Fac Fac Gar Turns Passed 1401 | 89 265 232 129 486 107 10 83 Spaces Moved 1633 | 49 175 179 154 550 276 34 216 Core 14 | 14 . . . . . . . Treads . | . . . . . . . . Legs 311 | 35 175 100 . 1 . . . Wheels . | . . . . . . . . Hover . | . . . . . . . . Flight 1308 | . . 79 154 549 276 34 216 Fastest Speed 22 | 50 120 34 28 29 22 24 22 Average Speed 57 | 111 120 84 37 58 27 24 25 Slowest Speed 190 | 150 120 190 54 130 101 26 95 Overloaded Moves 90 | . . . . . 12 . 78 Propulsion Burnouts . | . . . . . . . . Robots Hopped 7 | . . . 1 5 1 . . Cave-ins Triggered . | . . . . . . . . Exploration Rate (%) 18 | 3 42 20 19 18 8 2 33 Regions Visited 7 Branch Regions . Pre-discovered Areas . | . . . . . . . . Known Exits Taken 5 | . . 1 1 1 1 1 . Unknown Exits Taken 2 | 1 1 . . . . . . Scrap Searched . | . . . . . . . . Spaces Dug . | . . . . . . . . Terrain Destroyed 41 | . . . 41 . . . . Melee . | . . . . . . . . Projectile . | . . . . . . . . AOE 41 | . . . 41 . . . . Terrain Rammed . | . . . . . . . . Walls Destroyed . | . . . . . . . . Machines Disabled . | . . . . . . . . Actions | -11 -10 -9 -8 -7 -6 -5 -5 --------- Run | Yrd Mat Mat Mat Fac Fac Fac Gar Total 1909 | 68 208 234 193 636 294 34 242 Wait 40 | . 16 21 1 1 1 . . Move 1613 | 48 174 178 151 541 273 33 215 Hop 5 | . . . 1 3 1 . . Pick Up 29 | 7 2 6 7 4 3 . . Fast Attach 24 | 5 4 4 2 6 2 1 . Attach 13 | 1 . 2 3 5 2 . . Detach 4 | . . . 1 3 . . . Swap 6 | . . . 3 2 1 . . Drop 26 | . 1 8 6 7 4 . . Fire 108 | 7 11 15 18 54 3 . . Melee 4 | . . . . . 4 . . Ram . | . . . . . . . . Kick . | . . . . . . . . Crush . | . . . . . . . . Escape Stasis 27 | . . . . . . . 27 Rewire 10 | . . . . 10 . . . Trap . | . . . . . . . . Miscellaneous . | . . . . . . . . Route ------- -11/Scrapyard -10/Materials -9/Materials -8/Materials -7/Factory -6/Factory (discovered 2 exits: *Fac / *Low) -5/Factory -5/Garrison (discovered 1 exit: *Fac) History --------- Turn | Location | Event 14 | -11/Scrapyard | Discovered new exit (range 15) 90 | -11/Scrapyard | Entered Materials 296 | -10/Materials | Discovered new exit (range 7) 326 | -10/Materials | Build established: Mutant 355 | -10/Materials | Entered another Materials area 355 | -9/Materials | Evolved 2 slots: Propulsion x1, Utility x1 585 | -9/Materials | Discovered new exit (range 5) 586 | -9/Materials | Identified exit to Materials 587 | -9/Materials | Entered another Materials area 587 | -8/Materials | Evolved 2 slots: Propulsion x2 710 | -8/Materials | Discovered new exit (range 15) 716 | -8/Materials | Identified exit to Factory 716 | -8/Materials | Entered Factory 716 | -7/Factory | Evolved 2 slots: Power x1, Utility x1 735 | -7/Factory | Lost 3 parts (1p2n) 1200 | -7/Factory | Discovered new exit (range 8) 1201 | -7/Factory | Identified exit to Factory 1202 | -7/Factory | Entered another Factory area 1202 | -6/Factory | Evolved 2 slots: Utility x2 1248 | -6/Factory | Discovered new exit (range 16) 1249 | -6/Factory | Discovered new exit (range 10) 1252 | -6/Factory | Identified exit to Factory 1263 | -6/Factory | Identified exit to Lower Caves 1309 | -6/Factory | Entered another Factory area 1309 | -5/Factory | Evolved 2 slots: Power x1, Propulsion x1 1311 | -5/Factory | Identified exit to Garrison 1319 | -5/Factory | Entered Garrison 1365 | -5/Garrison | Triggered checkpoint 1375 | -5/Garrison | Triggered checkpoint 1395 | -5/Garrison | Discovered new exit (range 10) 1397 | -5/Garrison | Identified exit to Factory 1397 | -5/Garrison | Attempted to access garrison exit controls, blocked by remote lockdown 1401 | -5/Garrison | Spotted B-75 Beast 1402 | -5/Garrison | Self-destructed Last Messages --------------- 01383_ Field strength at 12. 01384_ Stasis field depleted. 01384_ Triggered Stasis Trap. 01384_ A bubble of rippling energy engulfs the area. 01384_ Field strength at 86. 01384_ Field strength at 72. 01385_ Field strength at 58. 01386_ Field strength at 35. 01387_ Field strength at 21. 01388_ Field strength at 3. 01389_ Stasis field depleted. 01390_ Cesium-ion Thruster destroyed. 01394_ Imp. Flight Unit destroyed. 01395_ EXIT=FOUND 01397_ EXIT=IDENTIFIED: FACTORY 01397_ Attempting to access garrison exit controls... 01397_ Remote lockdown engaged. 01401_ Weight Redist. System destroyed. Map ----- +----------------------------------------------------+ | | | | | | | | | | | | | | | | | | | | | ?????????????????????????????????????????????????? | | ?????????????????????????????????????????????????? | | ?????????????????????????????????????????????????? | | ?????????????????????????????????????????????????? | | ?????????????????????????????????????????????????? | | ?????????????????????????????????????????????????? | | ?????????????????????????????????????????????????? | | ?????????????????????????????????????????????????? | | ?????????????????????????????????????????????????? | | ????????????????????????################?????????? | | ????????????????????????# #?????????? | | ????????????????????????# s < #?????????? | | ????????????????????????# s #?????????? | | ????????????????????????# ############?????????? | | ????????????????????????# s#????????????????????? | | ????????????????????????#@b #????????????????????? | | ????????????????????????# ###############??????? | | ????????????????????????# gg +??????? | | ????????????????????????# g #??????? | | ????????????????+???????+ ####""""#### ###????? | | ???????+????????????????# #??????????# #"#????? | | ????????????????????????# #????+?????# "#????? | | ????????????????????????# #??????????# "#????? | | ????????????????????????#g #??????????# "#????? | | ????????????????????????# s#??????????#^ #"#????? | | ????????????????????????# +??????????# ###????? | | ????????????????????????# #??????????# ###????? | | ????????????????????????# #??????????# #"#????? | | ????????????????????????# #??????????# "#????? | | ????????????????????????# BB#??????????# "#????? | | ????????????????????????# BB#??##+###??# "#????? | | ???###########++######### #??# #??# #"#????? | | ???# #### #### ###????? | | ???# #??????? | | ???# +??????? | | ???# #######++#####+################T####??????? | | ???# #?????+??????# #??????????????###?????????? | | ???# #?????+??????# #??????????????????????????? | | ???# #????????????# #??????????????????????????? | | ???# #??????????? ?????????????????????????? | +----------------------------------------------------+ Best States ------------- Heat Dissipation 40 Energy Generation 31 Energy Capacity 210 Matter Stores 280 Matter Capacity 300 Sight Range 16 Terrain Scan Range 16 Terrain Scan Density 110 Additional Mass Support 6 Evasion (%) 65 Targeting Accuracy 8 Defensive Hacking 10 Item Schematics ----------------- None Robot Schematics ------------------ None Fabricated ------------ Nothing Alien Tech Used ----------------- None Achievements -------------- None Challenges ------------ None Game ------ Seed ActivePointyProtection Manual? 0 Play Time 00:21:55 Cumulative 45.7 hours Start 2024.04.24 @ 13:32:50 End 2024.04.24 @ 13:52:57 Sessions 1 Manual Loads 0 Difficulty Rogue Special Mode None Game No. 123 Rogue 121 Adventurer 2 Explorer 0 Win Type - Total 0 Types 0/0/0/0/0/0/0/0/0 Lore% 35 Gallery% 49 Achievement% 34 Wizard Run 0 Options --------- Layout 2 ASCII 0 Keyboard 0 Movement Arrows Keybinds 0 Fullscreen 2 Font 24/Smallcaps Map View 50x44 Zoom Use 0% Tactical HUD 1 Map Filters NONE Filters NONE Steam 1 RUN: 1251beeb-15f9-4252-8d56-ca7aeccc0800